bitfinex-derivatives/quotes_BTCF0:USTF0_20250905
["timestamp","ask_amount","ask_price","bid_price","bid_amount"]
[1757112604659,0.34871361,110930.0,110920.0,0.08475127]
[1757112605271,0.59871361,110930.0,110920.0,0.0041]
[1757112605671,0.60871361,110930.0,110920.0,0.0041]
[1757112606869,0.60871361,110930.0,110920.0,0.0021]
[1757112607071,0.03492,110900.0,110890.0,0.10343127]
[1757112607262,0.26673033,110900.0,110890.0,0.10343127]
[1757112608165,0.26673033,110900.0,110890.0,0.02278]
[1757112608567,0.27073033,110900.0,110890.0,0.02278]
[1757112608872,0.27073033,110900.0,110890.0,0.02478]
[1757112609069,0.26673033,110900.0,110890.0,0.02478]
[1757112609271,0.27567623,110900.0,110890.0,0.02678]
[1757112609465,0.26673033,110900.0,110890.0,0.02678]
[1757112610772,0.27580046,110900.0,110890.0,0.02678]
[1757112613374,0.27580046,110900.0,110890.0,0.10743127]
[1757112615975,0.04399013,110900.0,110890.0,0.10743127]
[1757112616271,0.27580046,110900.0,110890.0,0.10743127]
[1757112619576,0.50791541,110900.0,110890.0,0.10743127]
[1757112623285,0.49884528,110900.0,110890.0,0.10743127]
[1757112624088,0.49884528,110900.0,110890.0,0.02678]
[1757112628597,0.01321,110910.0,110890.0,0.83087188]
[1757112628783,0.06508,110910.0,110900.0,0.48511528]
[1757112628989,0.06498,110910.0,110900.0,0.25315264]
[1757112629192,0.29694264,110910.0,110900.0,0.25315264]
[1757112629686,0.29694264,110910.0,110900.0,0.02119]
[1757112629891,0.03564,110900.0,110890.0,0.02129]
[1757112630083,0.49956528,110900.0,110890.0,0.10184127]
[1757112630493,0.26760264,110900.0,110890.0,0.10184127]
[1757112631386,0.26760264,110900.0,110890.0,0.10384127]
[1757112631695,0.26760264,110900.0,110890.0,0.10484127]
[1757112632989,0.26760264,110900.0,110890.0,0.33680391]
[1757112633688,0.26760264,110900.0,110890.0,0.10484127]
[1757112634886,0.26760264,110900.0,110890.0,0.33680391]
[1757112636100,0.26760264,110900.0,110890.0,0.10484127]
[1757112637505,0.03564,110900.0,110890.0,0.10484127]
[1757112637691,0.26760264,110900.0,110890.0,0.10484127]
[1757112638497,0.49956528,110900.0,110890.0,0.10484127]
[1757112641895,0.49956528,110900.0,110890.0,0.02419]
[1757112643398,0.49956528,110900.0,110890.0,0.13705903]
[1757112643996,0.26760264,110900.0,110890.0,0.13705903]
[1757112644506,0.49956528,110900.0,110890.0,0.13705903]
[1757112644910,0.49956528,110900.0,110890.0,0.36902167]
[1757112644911,0.03564,110900.0,110890.0,0.36902167]
[1757112645102,0.26760264,110900.0,110890.0,0.36902167]
[1757112646108,0.26760264,110900.0,110890.0,0.25615264]
[1757112646502,0.26760264,110900.0,110890.0,1.16148023]
[1757112647103,0.26757934,110900.0,110890.0,1.08072934]
[1757112648410,0.26757934,110900.0,110890.0,1.16145614]
[1757112650510,0.26757934,110900.0,110890.0,0.33685614]
[1757112650711,0.26757934,110900.0,110890.0,1.16141614]
[1757112652716,0.26757934,110900.0,110890.0,0.9294768]
[1757112652906,0.26757934,110900.0,110890.0,1.16141614]
[1757112653516,0.30757934,110900.0,110890.0,1.16141614]
[1757112654613,0.30757934,110900.0,110890.0,1.08068934]
[1757112655004,0.30757934,110900.0,110890.0,0.25612934]
[1757112655206,0.30757934,110900.0,110890.0,1.08060934]
[1757112655619,0.07564,110900.0,110890.0,1.08060934]
[1757112655912,0.30757934,110900.0,110890.0,1.08060934]
[1757112656309,0.30757934,110900.0,110890.0,1.44347837]
[1757112656310,0.07564,110900.0,110890.0,1.44347837]
[1757112656515,0.04,110900.0,110890.0,1.44347837]
[1757112657516,0.04,110900.0,110890.0,1.53365007]
[1757112661915,0.04,110900.0,110890.0,1.78349486]
[1757112662113,0.0001,110910.0,110900.0,0.0051]
[1757112662318,0.19,110910.0,110900.0,0.57077041]
[1757112662514,0.19,110910.0,110900.0,0.49008868]
[1757112663517,0.19,110910.0,110900.0,0.58025228]
[1757112663717,0.19,110910.0,110900.0,0.1163736]
[1757112663917,0.19,110910.0,110900.0,0.49008868]
[1757112664118,0.19,110910.0,110900.0,0.57074037]
[1757112664816,0.19,110910.0,110900.0,0.57073919]
[1757112669628,0.21178,110910.0,110900.0,0.57073919]
[1757112671327,0.21178,110910.0,110900.0,0.49008868]
[1757112672231,0.19,110910.0,110900.0,0.49008868]
[1757112672429,0.19,110910.0,110900.0,0.57073919]
[1757112673632,0.19,110910.0,110900.0,0.10686051]
[1757112673824,0.19,110910.0,110900.0,0.57073919]
[1757112675425,0.19,110910.0,110900.0,0.66090279]
[1757112676019,0.19,110910.0,110900.0,0.58025228]
[1757112676933,0.19,110910.0,110900.0,0.69312131]
[1757112677126,0.19,110910.0,110900.0,0.69412131]
[1757112678928,0.19,110910.0,110900.0,0.69612131]
[1757112679436,0.19,110910.0,110900.0,0.46405833]
[1757112684634,0.0001,110920.0,110900.0,0.46405833]
[1757112684839,0.1101,110920.0,110910.0,1.13643009]
[1757112685038,0.11,110920.0,110910.0,1.13643009]
[1757112685636,0.11,110920.0,110910.0,1.14556761]
[1757112686436,0.11,110920.0,110910.0,1.15510892]
[1757112686635,0.11,110920.0,110910.0,1.26797795]
[1757112687736,0.11,110920.0,110910.0,1.26897795]
[1757112688535,0.11,110920.0,110910.0,1.27097795]
[1757112690234,0.11,110920.0,110910.0,1.50279365]
[1757112691927,0.0002,110930.0,110910.0,1.50279365]
[1757112692132,0.1902,110930.0,110920.0,0.2545157]
[1757112692334,0.1901,110930.0,110920.0,0.33506528]
[1757112692530,0.1901,110930.0,110920.0,0.34420528]
[1757112693527,0.1901,110930.0,110920.0,0.43435278]
[1757112696638,0.1901,110930.0,110920.0,0.46667223]
[1757112697233,0.0001,110930.0,110920.0,0.46667223]
[1757112697439,0.0001,110930.0,110920.0,1.29043223]
[1757112699845,0.0001,110930.0,110920.0,1.1774832]
[1757112700535,0.0001,110930.0,110920.0,1.29018275]
[1757112703247,0.0001,110930.0,110920.0,0.23468705]
[1757112703441,0.02194,110930.0,110920.0,1.29010275]
[1757112703640,0.03548,110930.0,110920.0,0.36721525]
[1757112703847,0.03548,110930.0,110920.0,1.19081525]
[1757112704042,0.03548,110930.0,110920.0,0.36721525]
[1757112704242,0.03548,110930.0,110920.0,1.19081525]
[1757112704751,0.03548,110930.0,110920.0,0.95899955]
[1757112705138,0.03548,110930.0,110920.0,1.19081525]
[1757112706752,0.03548,110930.0,110920.0,0.95899955]
[1757112706953,0.03548,110930.0,110920.0,1.19081525]
[1757112708555,0.03548,110930.0,110920.0,0.95899955]
[1757112708751,0.03548,110930.0,110920.0,0.13539955]
[1757112708955,0.03548,110930.0,110920.0,1.19073525]
[1757112713467,0.03548,110930.0,110920.0,1.0780357]
[1757112721868,0.03548,110930.0,110920.0,0.2545157]
[1757112722072,0.2672957,110930.0,110920.0,0.84598]
[1757112722374,0.2672957,110930.0,110920.0,0.92667497]
[1757112722577,0.2672957,110930.0,110920.0,0.10339497]
[1757112722780,0.2672957,110930.0,110920.0,0.92667497]
[1757112723077,0.03548,110930.0,110920.0,0.92667497]
[1757112723273,0.28548,110930.0,110920.0,0.92667497]
[1757112724379,0.28548,110930.0,110920.0,0.10339497]
[1757112724569,0.28548,110930.0,110920.0,0.92663497]
[1757112727377,0.28548,110930.0,110920.0,0.10339497]
[1757112727578,0.28548,110930.0,110920.0,0.92659497]
[1757112731685,0.28548,110930.0,110920.0,0.8459]
[1757112733789,0.28548,110930.0,110920.0,1.0777157]
[1757112733986,0.28548,110930.0,110920.0,0.2545157]
[1757112734193,0.28548,110930.0,110920.0,1.1906403]
[1757112734692,0.28548,110930.0,110920.0,0.84586]
[1757112734992,0.28548,110930.0,110920.0,1.0776757]
[1757112737190,0.28548,110930.0,110920.0,1.1906403]
[1757112741590,0.51727068,110930.0,110920.0,1.42240596]
[1757112742595,0.51727068,110930.0,110920.0,1.19061528]
[1757112744790,0.28548,110930.0,110920.0,1.07765068]
[1757112744992,0.51727068,110930.0,110920.0,1.07765068]
[1757112746096,0.28548,110930.0,110920.0,1.07765068]
[1757112746297,0.51727068,110930.0,110920.0,1.07765068]
[1757112747500,0.51727068,110930.0,110920.0,1.30944136]
[1757112748402,0.51727068,110930.0,110920.0,0.84586]
[1757112748602,0.51727068,110930.0,110920.0,1.30944136]
[1757112749095,0.51727068,110930.0,110920.0,1.07765068]
[1757112751504,0.51727068,110930.0,110920.0,1.30944136]
[1757112752610,0.28548,110930.0,110920.0,1.30944136]
[1757112752906,0.26364,110930.0,110920.0,1.31858136]
[1757112753099,0.26364,110930.0,110920.0,1.43154596]
[1757112754002,0.28558,110930.0,110920.0,0.9588246]
[1757112754209,0.28558,110930.0,110920.0,1.42240596]
[1757112757815,0.28558,110930.0,110920.0,1.19061528]
[1757112758314,0.51737068,110930.0,110920.0,1.42240596]
[1757112758514,0.51737068,110930.0,110920.0,1.30944136]
[1757112759315,0.26737068,110930.0,110920.0,1.30944136]
[1757112759815,0.26737068,110930.0,110920.0,0.48628136]
[1757112760024,0.26737068,110930.0,110920.0,1.30912136]
[1757112760925,0.26737068,110930.0,110920.0,1.07733068]
[1757112764620,0.26737068,110930.0,110920.0,0.25449068]
[1757112764824,0.26737068,110930.0,110920.0,1.07725068]
[1757112766626,0.26737068,110930.0,110920.0,0.84546]
[1757112766830,0.26737068,110930.0,110920.0,1.07725068]
[1757112776734,0.26737068,110930.0,110920.0,0.84546]
[1757112776928,0.26737068,110930.0,110920.0,1.07725068]
[1757112778434,0.26737068,110930.0,110920.0,1.19034653]
[1757112780434,0.26737068,110930.0,110920.0,1.07725068]
[1757112783143,0.26737068,110930.0,110920.0,1.30904136]
[1757112786434,0.0001,110930.0,110920.0,1.31818136]
[1757112786634,0.0001,110930.0,110920.0,1.39897072]
[1757112786844,0.0001,110930.0,110920.0,1.31818136]
[1757112787040,0.0001,110930.0,110920.0,1.56818136]
[1757112787639,0.0001,110930.0,110920.0,1.65831676]
[1757112789843,0.0001,110930.0,110920.0,1.56818136]
[1757112792043,0.0001,110930.0,110920.0,1.65831766]
[1757112792444,0.0001,110930.0,110920.0,1.77141351]
[1757112793448,0.0001,110930.0,110920.0,1.68127721]
[1757112793644,0.0001,110930.0,110920.0,1.56818136]
[1757112794538,0.0001,110930.0,110920.0,1.65831796]
[1757112794953,0.0001,110940.0,110930.0,0.1115692]
[1757112795135,0.0001,110950.0,110930.0,0.68815433]
[1757112795341,0.0001,110950.0,110940.0,1.39299436]
[1757112795540,0.24543068,110960.0,110940.0,1.31230136]
[1757112795747,0.26700068,110960.0,110950.0,0.33427139]
[1757112795938,0.26690068,110960.0,110950.0,0.33427139]
[1757112796140,0.26690068,110960.0,110950.0,0.25359068]
[1757112796446,0.26690068,110960.0,110950.0,0.33422779]
[1757112796642,0.27090068,110960.0,110950.0,0.33422779]
[1757112797543,0.27090068,110960.0,110950.0,0.25359068]
[1757112797742,0.27290068,110960.0,110950.0,0.25359068]
[1757112799748,0.27290068,110960.0,110950.0,0.0218]
[1757112799949,0.27290068,110960.0,110950.0,0.25359068]
[1757112801452,0.04111,110960.0,110950.0,0.0218]
[1757112810660,0.04111,110960.0,110950.0,0.8438]
[1757112816168,0.04111,110960.0,110950.0,1.07547835]
[1757112818270,0.04111,110960.0,110950.0,1.15611546]
[1757112818467,0.04111,110960.0,110950.0,1.07547835]
[1757112819372,0.04111,110960.0,110950.0,1.15611546]
[1757112819771,0.04111,110960.0,110950.0,0.92443711]
[1757112819970,0.04111,110960.0,110950.0,1.15611546]
[1757112824378,0.04111,110960.0,110950.0,0.10243711]
[1757112824575,0.04111,110960.0,110950.0,0.90239711]
[1757112824576,0.27278835,110960.0,110950.0,0.90239711]
[1757112824875,0.27278835,110960.0,110950.0,0.92419711]
[1757112827274,0.27278835,110960.0,110950.0,0.84356]
[1757112827472,0.27278835,110960.0,110950.0,0.95656377]
[1757112828178,0.27278835,110960.0,110950.0,0.84356]
[1757112828378,0.27278835,110960.0,110950.0,0.92429534]
[1757112829081,0.27278835,110960.0,110950.0,0.10253534]
[1757112829282,0.27278835,110960.0,110950.0,0.92421534]
[1757112831978,0.27078835,110960.0,110950.0,0.92421534]
[1757112832181,0.26678835,110960.0,110950.0,0.92421534]
[1757112832376,0.26778835,110960.0,110950.0,0.92421534]
[1757112837978,0.26778835,110960.0,110950.0,0.92409534]
[1757112838580,0.26778835,110960.0,110950.0,0.10253534]
[1757112838776,0.03611,110960.0,110950.0,0.92409534]
[1757112838976,0.26778835,110960.0,110950.0,0.92409534]
[1757112839177,0.26778835,110960.0,110950.0,0.10253534]
[1757112839378,0.51778835,110960.0,110950.0,0.08073534]
[1757112839585,0.52778835,110960.0,110940.0,0.08073534]
[1757112839785,0.26815835,110950.0,110940.0,0.08073534]
[1757112839985,0.26815835,110950.0,110930.0,0.90225534]
[1757112840287,0.03648,110940.0,110930.0,0.92487534]
[1757112842486,0.03648,110940.0,110930.0,0.92587534]
[1757112842686,0.03648,110940.0,110930.0,0.92687534]
[1757112843485,0.26815835,110940.0,110930.0,0.92687534]
[1757112844287,0.26815835,110940.0,110930.0,0.92683534]
[1757112844885,0.26815835,110940.0,110930.0,0.8461]
[1757112845492,0.03648,110940.0,110930.0,0.8461]
[1757112849785,0.26815835,110940.0,110930.0,0.8461]
[1757112852495,0.03648,110940.0,110930.0,0.8461]
[1757112857700,0.03648,110940.0,110930.0,0.92683534]
[1757112858000,0.03648,110940.0,110930.0,0.8461]
[1757112858192,0.03648,110940.0,110930.0,0.95910377]
[1757112858392,0.03648,110940.0,110930.0,1.03972623]
[1757112858593,0.03648,110940.0,110930.0,0.92672246]
[1757112861602,0.26824318,110940.0,110930.0,0.92672246]
[1757112861802,0.26824318,110940.0,110930.0,1.15848564]
[1757112864703,0.50000636,110940.0,110930.0,0.10524246]
[1757112864898,0.50000636,110940.0,110930.0,0.84582]
[1757112865298,0.26824318,110940.0,110930.0,1.07758318]
[1757112868598,0.26824318,110940.0,110930.0,1.15820564]
[1757112869401,0.26824318,110940.0,110930.0,1.07758318]
[1757112875006,0.26824318,110940.0,110930.0,1.15835425]
[1757112878413,0.26824318,110940.0,110930.0,1.15835383]
[1757112881417,0.26824318,110940.0,110930.0,0.92659065]
[1757112881617,0.26824318,110940.0,110930.0,1.15835383]
[1757112881918,0.26824318,110940.0,110930.0,1.07758318]
[1757112883318,0.26824318,110940.0,110930.0,1.15838024]
[1757112884112,0.26824318,110940.0,110930.0,0.92661706]
[1757112884317,0.26824318,110940.0,110930.0,1.15838024]
[1757112885527,0.03648,110940.0,110930.0,1.15838024]
[1757112886033,0.24579318,110950.0,110930.0,1.15838024]
[1757112886330,0.26883318,110950.0,110940.0,0.33455024]
[1757112886520,0.26863318,110950.0,110940.0,0.33455024]
[1757112887828,0.26963318,110950.0,110940.0,0.33455024]
[1757112888928,0.27063318,110950.0,110940.0,0.33455024]
[1757112897533,0.27063318,110950.0,110940.0,0.10278706]
[1757112899230,0.27063318,110950.0,110940.0,0.02199]
[1757112903433,0.03606,110940.0,110930.0,0.08079706]
[1757112903740,0.49958636,110940.0,110920.0,0.70294083]
[1757112903940,0.26782318,110930.0,110920.0,0.61192706]
[1757112905139,0.26882318,110930.0,110920.0,0.61192706]
[1757112905534,0.27082318,110930.0,110920.0,0.61192706]
[1757112906239,0.27082318,110930.0,110920.0,0.10288706]
[1757112906445,0.27082318,110930.0,110920.0,0.92340706]
[1757112911340,0.03906,110930.0,110920.0,0.92340706]
[1757112911545,0.27082318,110930.0,110920.0,1.15517024]
[1757112912246,0.27082318,110930.0,110920.0,0.92340706]
[1757112912545,0.27082318,110930.0,110920.0,1.15517024]
[1757112913247,0.27082318,110930.0,110920.0,0.33465024]
[1757112913546,0.27082318,110930.0,110920.0,0.92332706]
[1757112913846,0.27082318,110930.0,110920.0,0.84253]
[1757112914047,0.27990521,110930.0,110920.0,0.84253]
[1757112915249,0.27990521,110930.0,110920.0,0.02209]
[1757112915450,0.27990521,110930.0,110920.0,0.84253]
[1757112921556,0.27990521,110930.0,110920.0,1.07429318]
[1757112923044,0.27990521,110930.0,110920.0,0.84253]
[1757112923456,0.27996527,110930.0,110920.0,0.84253]
[1757112924557,0.04814203,110930.0,110920.0,0.84253]
[1757112924759,0.27996527,110930.0,110920.0,0.84253]
[1757112929660,0.27996527,110930.0,110920.0,0.92332706]
[1757112934965,0.27996527,110930.0,110920.0,0.92308706]
[1757112939667,0.27996527,110930.0,110920.0,0.84229]
[1757112940665,0.27996527,110930.0,110920.0,0.92316677]
[1757112942466,0.27996527,110930.0,110920.0,0.02209]
[1757112942668,0.27996527,110930.0,110920.0,0.08097755]
[1757112942874,0.27996527,110930.0,110920.0,0.10359755]
[1757112944375,0.27996527,110930.0,110920.0,0.02272]
[1757112972196,0.27996527,110930.0,110920.0,0.10359755]
[1757112974193,0.27996527,110930.0,110920.0,0.08097755]
[1757112975993,0.27896527,110930.0,110920.0,0.08097755]
[1757112976198,0.27896527,110930.0,110920.0,0.08197755]
[1757112977396,0.27696527,110930.0,110920.0,0.08297755]
[1757112981499,0.27601032,110930.0,110920.0,0.08297755]
[1757112983503,0.50793914,110930.0,110920.0,0.08297755]
[1757112983900,0.50793914,110930.0,110920.0,0.0021]
[1757112987610,1.32741914,110930.0,110920.0,0.0021]
[1757112987907,0.50793914,110930.0,110920.0,0.0021]
[1757112988106,1.32741914,110930.0,110920.0,0.0021]
[1757112989106,0.50793914,110930.0,110920.0,0.0021]
[1757112995411,1.32733914,110930.0,110920.0,0.0021]
[1757113000726,1.57733914,110930.0,110920.0,0.0021]
[1757113002820,1.58733914,110930.0,110920.0,0.0021]
[1757113003018,1.58733914,110930.0,110920.0,0.0011]
[1757113003219,0.76793914,110930.0,110920.0,0.0011]
[1757113003420,1.58725914,110930.0,110920.0,0.0011]
[1757113006628,0.76793914,110930.0,110920.0,0.0011]
[1757113006827,1.58721914,110930.0,110920.0,0.0011]
[1757113007632,0.76793914,110930.0,110920.0,0.0011]
[1757113007836,1.58721914,110930.0,110920.0,0.02418]
[1757113008229,1.58721914,110930.0,110920.0,0.0011]
[1757113010036,0.76793914,110930.0,110920.0,0.0011]
[1757113010238,1.58717914,110930.0,110920.0,0.0011]
[1757113010532,1.58717914,110930.0,110920.0,0.02413]
[1757113010738,1.58717914,110930.0,110920.0,0.0011]
[1757113012939,1.58717914,110930.0,110920.0,0.02413]
[1757113013141,1.58717914,110930.0,110920.0,0.0011]
[1757113018235,1.58713914,110930.0,110920.0,0.0011]
[1757113018844,0.28606311,110930.0,110920.0,0.02413]
[1757113019042,1.10522311,110930.0,110920.0,0.02413]
[1757113028546,0.87334708,110930.0,110920.0,0.02413]
[1757113028737,1.10522311,110930.0,110920.0,0.02413]
[1757113029845,1.09522311,110930.0,110920.0,0.02413]
[1757113030547,1.32709914,110930.0,110920.0,0.0011]
[1757113045452,1.09522619,110930.0,110920.0,0.0011]
[1757113048759,0.04418708,110930.0,110920.0,0.02267]
[1757113048956,0.86298708,110930.0,110920.0,0.02267]
[1757113049156,1.10486619,110930.0,110920.0,0.02267]
[1757113051452,1.10486619,110930.0,110920.0,0.0011]
[1757113052959,0.03591,110910.0,110900.0,0.08087755]
[1757113053159,1.31842822,110910.0,110900.0,0.08087755]
[1757113053356,0.03591,110900.0,110890.0,0.10244755]
[1757113053561,0.26778911,110900.0,110890.0,0.10244755]
[1757113054061,0.26778911,110900.0,110890.0,0.13457377]
[1757113054857,0.27078911,110900.0,110890.0,0.13457377]
[1757113055363,0.27078911,110900.0,110890.0,0.02157]
[1757113055857,0.27478911,110900.0,110890.0,0.02157]
[1757113056261,0.27478911,110900.0,110890.0,0.35236242]
[1757113057564,0.04291,110900.0,110890.0,0.35236242]
[1757113057967,0.04291,110900.0,110890.0,0.27157]
[1757113059370,0.04291,110900.0,110890.0,0.10234593]
[1757113072971,0.27478911,110900.0,110890.0,0.10234593]
[1757113074372,0.04291,110900.0,110890.0,0.10234593]
[1757113074571,0.27478911,110900.0,110890.0,0.10234593]
[1757113077180,0.27178911,110900.0,110890.0,0.10234593]
[1757113077380,0.27178911,110900.0,110890.0,0.10334593]
[1757113077679,0.26778911,110900.0,110890.0,0.10334593]
[1757113082583,0.26778911,110900.0,110890.0,0.08177593]
[1757113084792,0.26778911,110900.0,110890.0,0.10329593]
[1757113089792,0.27778911,110900.0,110890.0,0.10329593]
[1757113092792,0.27778911,110900.0,110890.0,0.08177593]
[1757113100210,0.27778911,110900.0,110890.0,0.001]
[1757113100704,0.27778911,110900.0,110890.0,0.002]
[1757113101299,0.27778911,110900.0,110890.0,0.005]
[1757113101506,0.27778911,110900.0,110890.0,0.08577593]
[1757113104009,0.27778911,110900.0,110890.0,0.005]
[1757113105409,0.2778949,110900.0,110890.0,0.005]
[1757113105707,0.5098798,110900.0,110890.0,0.005]
[1757113106104,0.7418647,110900.0,110890.0,0.005]
[1757113106310,1.8902647,110900.0,110890.0,0.005]
[1757113106502,1.6582798,110900.0,110890.0,0.005]
[1757113107409,1.6582798,110900.0,110890.0,0.003]
[1757113107606,1.8902647,110900.0,110890.0,0.003]
[1757113108005,1.6582798,110900.0,110890.0,0.003]
[1757113108708,1.8902647,110900.0,110890.0,0.003]
[1757113108905,1.6582798,110900.0,110890.0,0.003]
[1757113109408,1.8902647,110900.0,110890.0,0.003]
[1757113113213,2.1402647,110900.0,110890.0,0.003]
[1757113119408,1.8902647,110900.0,110890.0,0.003]
[1757113123411,0.03489,110890.0,110880.0,0.0001]
[1757113123608,0.03489,110880.0,110870.0,0.0001]
[1757113123808,0.03489,110870.0,110860.0,0.10299593]
[1757113124109,0.27572358,110870.0,110860.0,0.10289593]
[1757113127417,0.27572358,110870.0,110860.0,0.35289593]
[1757113134226,0.27572358,110870.0,110860.0,0.27212]
[1757113135425,0.27572358,110870.0,110860.0,0.38512377]
[1757113136018,0.2668749,110870.0,110860.0,0.38512377]
[1757113136218,0.27571704,110870.0,110860.0,0.38512377]
[1757113136526,0.28571704,110870.0,110860.0,0.35294293]
[1757113139820,0.28571704,110870.0,110860.0,0.02212]
[1757113141323,0.28571704,110870.0,110860.0,0.10294293]
[1757113141632,0.28571704,110870.0,110860.0,0.02212]
[1757113141930,0.28571704,110870.0,110860.0,0.10294293]
[1757113142322,0.28571704,110870.0,110860.0,0.02212]
[1757113142731,0.28571704,110870.0,110860.0,0.10294293]
[1757113145136,0.28571704,110870.0,110860.0,0.02212]
[1757113149934,0.27571704,110870.0,110860.0,0.02212]
[1757113152434,0.27571704,110870.0,110860.0,0.10294293]
[1757113161042,0.50770194,110870.0,110860.0,0.10294293]
[1757113161247,0.03673,110860.0,110850.0,0.1424503]
[1757113161444,0.5006998,110860.0,110850.0,0.1423503]
[1757113162448,0.03673,110860.0,110850.0,0.1423503]
[1757113162749,0.5006998,110860.0,110850.0,0.1423503]
[1757113164353,0.5016998,110860.0,110850.0,0.1423503]
[1757113165460,0.26984862,110860.0,110850.0,0.1423503]
[1757113172255,0.26984862,110860.0,110850.0,0.06152737]
[1757113173159,0.26984862,110860.0,110850.0,0.14242691]
[1757113175561,0.26984862,110860.0,110850.0,0.06152737]
[1757113177660,0.03773,110860.0,110850.0,0.06152737]
[1757113178265,0.03773,110860.0,110850.0,0.17453114]
[1757113188973,0.26984862,110860.0,110850.0,0.17453114]
[1757113214301,0.26984862,110860.0,110850.0,0.23310356]
[1757113214506,0.26984862,110860.0,110850.0,0.12009979]
[1757113215308,0.26984862,110860.0,110850.0,0.03916737]
[1757113215607,0.26884862,110860.0,110850.0,0.04116737]
[1757113217408,0.26884862,110860.0,110850.0,0.10585693]
[1757113217912,0.26884862,110860.0,110850.0,0.10485693]
[1757113219309,1.08644862,110860.0,110850.0,0.10485693]
[1757113223115,1.33644862,110860.0,110850.0,0.10485693]
[1757113225207,1.10433,110860.0,110850.0,0.10485693]
[1757113225507,1.33644862,110860.0,110850.0,0.10485693]
[1757113227517,1.56867968,110860.0,110850.0,0.10485693]
[1757113231316,1.56867968,110860.0,110850.0,0.04016737]
[1757113232018,1.56863968,110860.0,110850.0,0.04016737]
[1757113232214,1.56863968,110860.0,110850.0,0.12710693]
[1757113232414,1.56860442,110860.0,110850.0,0.12710693]
[1757113234520,1.56860442,110860.0,110850.0,0.10485693]
[1757113235207,1.56860442,110860.0,110850.0,0.04016737]
[1757113237413,1.56860442,110860.0,110850.0,0.10485693]
[1757113237815,0.75104442,110860.0,110850.0,0.12710693]
[1757113238015,1.56856442,110860.0,110850.0,0.12710693]
[1757113238622,0.75104442,110860.0,110850.0,0.12710693]
[1757113238822,1.56856442,110860.0,110850.0,0.12710693]
[1757113239218,0.75104442,110860.0,110850.0,0.12710693]
[1757113239419,1.31856442,110860.0,110850.0,0.12710693]
[1757113239720,0.50104442,110860.0,110850.0,0.12710693]
[1757113240023,1.31856442,110860.0,110850.0,0.12710693]
[1757113242425,0.85425,110860.0,110850.0,0.12710693]
[1757113242722,1.31856442,110860.0,110850.0,0.12710693]
[1757113244328,0.85425,110860.0,110850.0,0.12710693]
[1757113244530,1.31856442,110860.0,110850.0,0.12710693]
[1757113245621,1.31856442,110860.0,110850.0,0.60926414]
[1757113245622,0.03673,110860.0,110850.0,0.60926414]
[1757113245822,1.08636721,110860.0,110850.0,0.54457458]
[1757113246022,1.08636721,110860.0,110850.0,0.625507]
[1757113246424,1.31852442,110860.0,110850.0,0.39334979]
[1757113246824,0.50104442,110860.0,110850.0,0.39334979]
[1757113252334,0.50104442,110860.0,110850.0,0.31241737]
[1757113259137,0.50104442,110860.0,110850.0,0.37710071]
[1757113260842,0.50100214,110860.0,110850.0,0.37710071]
[1757113261732,0.50100214,110860.0,110850.0,0.31241737]
[1757113263938,0.50100214,110860.0,110850.0,0.04016737]
[1757113264231,0.75100214,110860.0,110850.0,0.10486328]
[1757113268842,0.28673,110860.0,110850.0,0.10486328]
[1757113269048,0.75100214,110860.0,110850.0,0.10486328]
[1757113280162,0.75100214,110860.0,110850.0,0.04016737]
[1757113281764,1.56828214,110860.0,110850.0,0.06283737]
[1757113284967,0.75100214,110860.0,110850.0,0.06283737]
[1757113285156,1.56828214,110860.0,110850.0,0.06283737]
[1757113286867,1.56828214,110860.0,110850.0,0.12753328]
[1757113289468,1.33615923,110860.0,110850.0,0.12753328]
[1757113289769,0.51887923,110860.0,110850.0,0.12753328]
[1757113289967,1.33615923,110860.0,110850.0,0.12753328]
[1757113290566,0.51887923,110860.0,110850.0,0.12753328]
[1757113290870,1.33615923,110860.0,110850.0,0.12753328]
[1757113295177,0.51887923,110860.0,110850.0,0.12753328]
[1757113295368,1.33611923,110860.0,110850.0,0.12753328]
[1757113296076,0.51887923,110860.0,110850.0,0.12753328]
[1757113296273,1.33611923,110860.0,110850.0,0.12753328]
[1757113296476,0.51887923,110860.0,110850.0,0.12753328]
[1757113296677,0.26887923,110860.0,110850.0,0.06283737]
[1757113296872,1.08611923,110860.0,110850.0,0.14376979]
[1757113297469,0.03673,110860.0,110850.0,0.39376979]
[1757113297675,0.03673,110860.0,110850.0,0.5449866]
[1757113298075,0.03673,110860.0,110850.0,0.31283737]
[1757113299379,0.03673,110860.0,110850.0,0.06283737]
[1757113299580,0.03673,110860.0,110850.0,0.07197613]
[1757113299879,0.03673,110860.0,110850.0,0.15290855]
[1757113301681,0.03673,110860.0,110850.0,0.14376979]
[1757113304283,0.03673,110860.0,110850.0,0.1526902]
[1757113305684,0.03673,110860.0,110850.0,0.14376979]
[1757113308586,0.03673,110860.0,110850.0,0.15295113]
[1757113309289,0.03673,110860.0,110850.0,0.38510036]
[1757113309987,0.02321,110860.0,110850.0,0.38510036]
[1757113310187,0.24497923,110870.0,110850.0,0.38510036]
[1757113310482,0.25497923,110870.0,110850.0,0.38520036]
[1757113311690,0.02147,110860.0,110850.0,0.38420036]
[1757113311884,0.02147,110860.0,110850.0,0.38410036]
[1757113312682,0.02147,110860.0,110850.0,0.38510036]
[1757113315991,0.03483,110860.0,110850.0,0.38510036]
[1757113319194,0.03483,110860.0,110850.0,0.15295113]
[1757113323895,0.03483,110860.0,110850.0,0.38510036]
[1757113324197,0.03483,110860.0,110850.0,0.14376979]
[1757113325499,0.03483,110860.0,110850.0,0.15286238]
[1757113325798,0.03483,110860.0,110850.0,0.14376979]
[1757113330894,0.03483,110860.0,110850.0,0.06283737]
[1757113331902,0.03483,110860.0,110850.0,0.17584114]
[1757113332498,0.03483,110860.0,110850.0,0.40799037]
[1757113334001,0.03483,110860.0,110850.0,0.2949866]
[1757113337310,0.03483,110860.0,110850.0,0.40799037]
[1757113339720,0.03483,110860.0,110850.0,0.2949866]
[1757113341418,0.03483,110860.0,110850.0,1.1118666]
[1757113348025,0.03483,110860.0,110850.0,0.06283737]
[1757113348324,0.03483,110860.0,110850.0,0.87967737]
[1757113348524,0.03483,110860.0,110850.0,0.06283737]
[1757113348726,0.03483,110860.0,110850.0,0.87967737]
[1757113349125,0.03483,110860.0,110850.0,0.99268114]
[1757113351428,0.26690497,110860.0,110850.0,1.22475611]
[1757113351824,0.0361,110880.0,110870.0,0.02294]
[1757113352024,0.26817497,110880.0,110870.0,0.25501497]
[1757113352226,0.26817497,110880.0,110870.0,0.33594252]
[1757113352424,0.26817497,110880.0,110870.0,0.10386755]